Cogmind - Beta 17 @@@ ROGUE MODE // 2026.07.06 @ 00:00:13 Player: AngelSpirit Result: Destroyed by Y-54 Guardian with Gatling Laser Performance ------------- Evolutions (0) 0 Regions Visited (3) 600 Robots Destroyed (32) 160 Value Destroyed (843) 843 Prototype IDs (0) 0 Alien Tech Used (0) 0 Bonus (0) 0 TOTAL SCORE: 1603 Bonus ------- None Cogmind --------- Core Integrity 0/250 Matter 194/300 Energy 170/200 System Corruption 2% Temperature Cool (12) Movement Rolling (145) Ox3 Location -7/Recycling Parts ------- > --- POWER (1) -------- Subdweller Power Source > --- PROPULSION (2) --- Compact Wheel Compact Wheel > --- UTILITY (2) ------ Huge Storage Unit Hacking Suite > --- WEAPON (2) ------- Subdweller Beam Cannon Subdweller Machine Gun > --- INVENTORY (25) --- Wheel Subdweller Monowheel Humpback Subdweller Optics Scrap Shield Subdweller Laser Light Cannon SUBCON Basin (Full) Peak State ------------ > --- POWER ------------ Subdweller Power Source > --- PROPULSION ------- Compact Wheel Subdweller Monowheel > --- UTILITY ---------- Huge Storage Unit Subdweller Optics > --- WEAPON ----------- Subdweller Beam Cannon Subdweller Machine Gun > --- INVENTORY -------- Wheel Compact Wheel Subdweller Monowheel Humpback Hacking Suite Subdweller Laser Light Cannon Datajack Shrapnel Trap SUBCON Basin [Rating: 31] Favorites ----------- Power Ion Engine Engine Ion Engine Propulsion Compact Wheel Treads Light Treads Wheel Compact Wheel Utility Huge Storage Unit Device Seismic Detector Storage Huge Storage Unit Hackware Hacking Suite Protection Backup Plating I Weapon Light Cannon Energy Gun Subdweller Laser Energy Cannon Subdweller Beam Cannon Ballistic Gun Subdweller Machine Gun Ballistic Cannon Light Cannon Build | -11 -10 -10 -7 ------- Run | Yrd Mat Sub Rec Slots Evolved . | . . . . Power . | . . . . Propulsion . | . . . . Utility . | . . . . Weapon . | . . . . Parts Attached 26 | 7 5 13 1 Power 2 | 1 . 1 . Engine 2 | 1 . 1 . Core . | . . . . Reactor . | . . . . Propulsion 8 | 2 2 4 . Treads 2 | . 2 . . Leg . | . . . . Wheel 6 | 2 . 4 . Hover . | . . . . Flight . | . . . . Utility 7 | 2 1 3 1 Device 2 | 1 . 1 . Storage 2 | 1 1 . . Processor . | . . . . Hackware 1 | . . . 1 Protection 2 | . . 2 . Artifact . | . . . . Weapon 9 | 2 2 5 . Energy Gun 1 | . . 1 . Energy Cannon 1 | . . 1 . Ballistic Gun 4 | 2 . 2 . Ballistic Cannon 3 | . 2 1 . Launcher . | . . . . Special Weapon . | . . . . Impact Weapon . | . . . . Slashing Weapon . | . . . . Piercing Weapon . | . . . . Special Melee Weapon . | . . . . Unidentified Prototypes . | . . . . Parts Lost 6 | . . 6 . Power 1 | . . 1 . Propulsion 2 | . . 2 . Utility 2 | . . 2 . Weapon 1 | . . 1 . Highest Loss Streak 3 | . . 3 . To Critical Strikes . | . . . . Average Backups 9 | 1 7 11 7 Power . | . . . . Propulsion 3 | 1 3 3 2 Utility 2 | . 1 2 3 Weapon 3 | . 2 4 2 Tool/Special . | . . . . Unused Backups 12 | . 2 8 2 Power . | . . . . Propulsion 2 | . 1 . 1 Utility 3 | . . 2 1 Weapon 5 | . 1 4 . Tool/Special 2 | . . 2 . Average Slot Usage (%) 92 | . 99 85 92 Engine 10 | . 14 5 14 Treads 6 | . 7 5 . Wheel 21 | . 20 22 28 Device 7 | . 13 3 . Storage 12 | . 14 11 14 Protection 4 | . . 8 . Energy Cannon 3 | . . 7 4 Ballistic Gun 8 | . 2 12 14 Ballistic Cannon 15 | . 25 6 9 Peak Build Rating 31 | 7 8 31 31 Average Rating 11 | 5 7 14 28 On Entrance 10 | . 7 8 27 Avg Prop Armor Cover (%) 11 | . 11 11 . Naked Turns . | . . . . Heaviest Build 99 | 15 92 99 97 Greatest Support 40 | 32 40 36 32 Greatest Overweight (x) 5 | . 2 5 3 Average Overweight (x) 1 | . 1 2 2 Largest Inventory Capacity 25 | 8 25 25 25 Average Capacity 18 | 7 16 20 25 Most Carried 25 | 3 10 25 25 Average Carried 11 | 1 7 15 24 Final Capacity 25 | 8 25 25 25 Final Carried 25 | 3 10 25 24 Class Distribution -------------------- 90% | Mutant 9% | Subdweller-Mutant Dominant Class ---------------- Mutant | -10/Materials Mutant | -10/Subcaves Mutant | -7/Recycling Resources | -11 -10 -10 -7 ----------- Run | Yrd Mat Sub Rec Matter Collected 1193 | 276 567 350 . Remotely . | . . . . Salvage Created 752 | 17 494 241 . Parts 49 | 4 31 14 . Haulers Intercepted 2 | . 2 . . Recyclers Shooed . | . . . . Parts Field Recycled . | . . . . Retrieved Matter . | . . . . Parts Self-Destructed 15 | . . 15 . Prevented . | . . . . Parts Restored . | . . . . Kills | -11 -10 -10 -7 ------- Run | Yrd Mat Sub Rec Combat Hostiles Destroyed 21 | . 13 8 . Guns 8 | . 3 5 . Cannons 13 | . 10 3 . Classes Destroyed 9 | 1 6 2 . Tunneler 1 | 1 . . . Hauler 2 | . 2 . . Recycler 1 | . 1 . . Operator 2 | . 2 . . Turret 2 | . . 2 . Watcher 3 | . 3 . . Swarmer 4 | . 3 1 . Grunt 10 | . 10 . . Subdweller 7 | . . 7 . Best Kill Streak 3 | 1 3 2 . Combat Bots Only 3 | . 3 2 . Max Kills in Single Turn 1 | 1 1 1 . Gunslinging . | . . . . Exploded . | . . . . Melee . | . . . . Uniques/NPCs Destroyed . | . . . . Combat | -11 -10 -10 -7 -------- Run | Yrd Mat Sub Rec Hostile Shots Fired 118 | . 59 56 3 Missed 35 | . 16 19 . Hits 83 | . 43 37 3 Projectile 83 | . 43 37 3 AOE 3 | . . 3 . Critical Strikes 1 | . . 1 . Damage Taken 1220 | . 438 760 22 Core 252 | . 65 165 22 Absorbed by Shields . | . . . . Core Remaining (%) 100 | 100 . . . Volleys Fired 144 | 1 61 73 9 Largest 2 | 2 2 2 1 Hottest 110 | 40 60 110 80 Shots Fired 221 | 2 122 88 9 Gun 62 | 2 20 40 . Cannon 159 | . 102 48 9 Launcher . | . . . . Special . | . . . . Kinetic 185 | 2 122 61 . Thermal 36 | . . 27 9 Explosive . | . . . . Electromagnetic . | . . . . Robot Hit Streak 13 | 2 7 13 . Robot Miss Streak 11 | . 11 3 . Penetration Max . | . . . . Secondary Targets . | . . . . Shots Hit Robots 116 | 2 65 49 . Core Hits 42 | 1 23 18 . Critical Kills . | . . . . Critical Parts Destroyed . | . . . . Critical Strikes 3 | . 2 1 . Destroy 1 | . . 1 . Blast 2 | . 2 . . Melee Attacks . | . . . . Impact . | . . . . Slashing . | . . . . Piercing . | . . . . Sneak Attacks . | . . . . Combat Hostiles . | . . . . Follow-up Attacks . | . . . . Damage Inflicted 2111 | 26 1140 945 . Guns 403 | 26 92 285 . Cannons 1708 | . 1048 660 . Explosions . | . . . . Melee . | . . . . Ramming . | . . . . Kinetic 1863 | 26 1140 697 . Thermal 248 | . . 248 . Explosive . | . . . . Electromagnetic . | . . . . Impact . | . . . . Slashing . | . . . . Piercing . | . . . . Highest Corruption 2 | . 2 2 2 Average Corruption 2 | . 2 2 2 Corruption Purged . | . . . . Corruption Blocked . | . . . . Effects 20 | . 3 16 1 Message Errors 4 | . 1 3 . Matter Fused 4 | . 1 3 . Heat Flow Errors 2 | . . 2 . Energy Discharges 4 | . 1 3 . Data Loss (minor) 2 | . . 1 1 Data Loss (major) 1 | . . 1 . Misfires 1 | . . 1 . Weapon Failures 2 | . . 2 . Overload Shots . | . . . . Overflow Damage 19 | . 7 12 . Projectiles 19 | . 7 12 . Explosions . | . . . . Melee . | . . . . Knockbacks 20 | . 16 4 . Impact . | . . . . Kinetic 20 | . 16 4 . Secondary . | . . . . Self-Inflicted Damage . | . . . . Shots . | . . . . Rammed . | . . . . Targets Rammed . | . . . . Kicked . | . . . . Crushed . | . . . . Highest Temperature 150 | . 78 123 150 Average Temperature 40 | . 30 46 65 Received Heat Transfer 288 | . 174 102 12 Siege Activations . | . . . . Martial Activations . | . . . . Shielding Activations . | . . . . Robots Disrupted . | . . . . Combat Hostiles . | . . . . Robots Corrupted . | . . . . Combat Hostiles . | . . . . Parts Fried . | . . . . Impact Corruptions . | . . . . Robots Melted . | . . . . Combat Hostiles . | . . . . Parts Melted 1 | . . 1 . Heat Transferred 321 | . . 321 . Parts Sabotaged . | . . . . Parts Stolen . | . . . . Parts Stripped . | . . . . Power Chain Reactions . | . . . . Alert | -11 -10 -10 -7 ------- Run | Yrd Mat Sub Rec Maximum Alert Level 1 | . 1 . . Low Security (%) 99 | 100 99 . 100 Level 1 . | . . . . Level 2 . | . . . . Level 3 . | . . . . Level 4 . | . . . . Level 5 . | . . . . High Security . | . . . . Max Security . | . . . . Peak Influence 202 | 5 202 . 131 Initial 127 | . . . 127 Average 111 | 1 117 . 117 Influence Increases 826 | 5 478 315 28 Destroy 0b10 Robot/C 320 | . 260 60 . Destroy 0b10 Robot/NC 45 | 5 40 . . Destroy Leader 60 | . 60 . . Successful Hack 62 | . 38 . 24 Select Force Hacks 60 | . 60 . . Destroy Structure 9 | . 5 . 4 Lose Combat Pursuer 270 | . 15 255 . Influence Decreases 721 | 5 464 64 188 Entered New Map 145 | . . 7 138 Time Decay 569 | 5 464 50 50 Lost Part 7 | . . 7 . Squads Dispatched 3 | . 3 . . Investigation 2 | . 2 . . Extermination . | . . . . Reinforcement 1 | . 1 . . Assault . | . . . . Garrison . | . . . . Intercept . | . . . . Searches Triggered . | . . . . Construction Impeded . | . . . . Haulers Reinforced . | . . . . Active Scanning Responses . | . . . . Cargo Convoy Interrupts . | . . . . Stealth | -11 -10 -10 -7 --------- Run | Yrd Mat Sub Rec Distress Signals 2 | . 2 . . Communications Jammed . | . . . . Distress Signals . | . . . . Times Spotted 28 | . 19 8 1 Peak Tracking Total 6 | . 4 6 1 Tactical Retreats 4 | . 1 3 . Traps | -11 -10 -10 -7 ------- Run | Yrd Mat Sub Rec Traps Triggered 1 | . 1 . . Indirectly . | . . . . Trap Hack Attempts . | . . . . Triggered . | . . . . Disarmed . | . . . . Reprogrammed . | . . . . Reused 1 | . . 1 . Traps Extracted . | . . . . Installed 1 | . . 1 . Triggered 1 | . . 1 . Most Traps Carried 1 | . . 1 . Machines | -11 -10 -10 -7 ---------- Run | Yrd Mat Sub Rec Machines Disabled 2 | . . 2 . Max in Single Turn 1 | . . 1 . Machines Repaired . | . . . . Machines Dismantled . | . . . . Machines Sabotaged . | . . . . Overloaded Fab Kills . | . . . . Hacking | -11 -10 -10 -7 --------- Run | Yrd Mat Sub Rec Machines Accessed 15 | . 11 3 1 Terminals 9 | . 8 . 1 Fabricators . | . . . . Repair Stations 1 | . 1 . . Recycling Units 2 | . 2 . . Scanalyzers . | . . . . Garrison Access . | . . . . Total Hacks 37 | . 29 6 2 Successful 24 | . 16 6 2 Failed 13 | . 13 . . Catastrophic 1 | . 1 . . Database Lockouts . | . . . . Manual 28 | . 26 . 2 Terminals 26 | . 24 . 2 Fabricators . | . . . . Repair Stations 2 | . 2 . . Recycling Units 3 | . 3 . . Scanalyzers . | . . . . Garrison Access . | . . . . Terminal Hacks 8 | . 2 6 . Record 4 | . . 4 . Open Door 1 | . . 1 . Terminal Index 1 | . 1 . . Locate Traps 1 | . 1 . . Release Object 1 | . . 1 . Fabricator Hacks . | . . . . Repair Station Hacks 1 | . 1 . . Refit 1 | . 1 . . Recycling Unit Hacks . | . . . . Scanalyzer . | . . . . Garrison Access Hacks . | . . . . Unauthorized Hacks 15 | . 13 . 2 Terminals 13 | . 11 . 2 Botnet 4 | . 3 . 1 Operators 1 | . 1 . . Skim 8 | . 7 . 1 Fabricators . | . . . . Repair Stations . | . . . . Recycling Units 2 | . 2 . . Tunnel 2 | . 2 . . Scanalyzers . | . . . . Garrison Access . | . . . . Data Cores Recovered 1 | . 1 . . Used . | . . . . Hacking Detections 9 | . 8 . 1 Full Trace Events 1 | . 1 . . Feedback Events . | . . . . Feedback Blocked . | . . . . Robot Schematics Acquired . | . . . . Robots Built . | . . . . Authchips . | . . . . Time . | . . . . Total Robot Build Rating . | . . . . Part Schematics Acquired . | . . . . Parts Built . | . . . . Authchips . | . . . . Time . | . . . . Total Part Build Rating . | . . . . Part Studies Acquired . | . . . . Parts Repaired . | . . . . Time . | . . . . Parts Recycled . | . . . . Recycled Matter . | . . . . Retrieved Matter . | . . . . Retrieved Components . | . . . . Parts Scanalyzed . | . . . . Part Schematics Acquired . | . . . . Parts Damaged . | . . . . Bothacking | -11 -10 -10 -7 ------------ Run | Yrd Mat Sub Rec Used RIF Installer . | . . . . Robots Hacked . | . . . . Non-combat . | . . . . Combat . | . . . . Robot Hacks Applied . | . . . . Relay Couplers Released . | . . . . Fabnet Peak Effective % . | . . . . Robots Rewired . | . . . . Allies Hacked . | . . . . Hacks Repelled . | . . . . Allies | -11 -10 -10 -7 -------- Run | Yrd Mat Sub Rec Total Allies . | . . . . Largest Group . | . . . . Highest-Rated Group . | . . . . Highest-Rated Ally . | . . . . Total Orders . | . . . . Ally Attacks . | . . . . Total Damage . | . . . . Kills . | . . . . Allies Corrupted . | . . . . Allies Melted . | . . . . Intel | -11 -10 -10 -7 ------- Run | Yrd Mat Sub Rec Active Infowar (turns) 1324 | 23 1085 216 . Optics 201 | . . 201 . Seismic 1123 | 23 1085 15 . Robot Analysis Total . | . . . . Derelict Logs Recovered 2 | . . 2 . Drone Launches . | . . . . Drone Recoveries . | . . . . Exploration | -11 -10 -10 -7 ------------- Run | Yrd Mat Sub Rec Turns Passed 2581 | 70 1161 1239 111 Spaces Moved 1499 | 51 690 698 60 Core 5 | 5 . . . Treads 8 | . 8 . . Legs . | . . . . Wheels 1486 | 46 682 698 60 Hover . | . . . . Flight . | . . . . Fastest Speed 50 | 50 100 105 130 Average Speed 127 | 95 121 136 131 Slowest Speed 175 | 100 160 175 145 Overloaded Moves . | . . . . Propulsion Burnouts . | . . . . Robots Hopped . | . . . . Potential Cave-ins 2 | . . . 2 Cave-ins Triggered . | . . . . Exploration Rate (%) 37 | 3 97 28 21 Regions Visited 3 Branch Regions 2 Pre-discovered Areas 7 | . 4 3 . Known Exits Taken 2 | . 1 1 . Unknown Exits Taken 1 | 1 . . . Scrap Searched 7 | . . 7 . Spaces Dug 9 | . . 6 3 Terrain Destroyed 18 | . . 9 9 Melee . | . . . . Projectile 18 | . . 9 9 AOE . | . . . . Terrain Rammed . | . . . . Walls Destroyed . | . . . . Machines Disabled . | . . . . Actions | -11 -10 -10 -7 --------- Run | Yrd Mat Sub Rec Total 1941 | 67 891 901 82 Wait 188 | 6 111 60 11 Move 1496 | 50 689 697 60 Hop . | . . . . Pick Up 39 | 3 10 26 . Fast Attach 8 | 7 . 1 . Attach 10 | . 1 8 1 Detach 2 | . 2 . . Swap 24 | . 12 11 1 Drop 28 | . 5 23 . Fire 144 | 1 61 73 9 Melee . | . . . . Ram . | . . . . Kick . | . . . . Crush . | . . . . Escape Stasis . | . . . . Rewire . | . . . . Trap 1 | . . 1 . Miscellaneous 1 | . . 1 . Route ------- -11/Scrapyard -10/Materials (discovered 6 exits: [*Mat x3] / [*Min x2] / *Sub) -10/Subcaves (discovered 3 exits: Mat x2 / *Rec) -7/Recycling History --------- Turn | Location | Event 5 | -11/Scrapyard | Discovered new exit (range 16) 71 | -11/Scrapyard | Entered Materials 72 | -10/Materials | Discovered new exit (range 12) 213 | -10/Materials | Discovered new exit (range 5) 330 | -10/Materials | Build established: Mutant 633 | -10/Materials | Discovered new exit (range 13) 789 | -10/Materials | Discovered new exit (range 14) 877 | -10/Materials | Learned location of Subcaves (-10) 969 | -10/Materials | Learned location of Recycling (-7) 998 | -10/Materials | Learned location of 2 exits from Subcaves 1007 | -10/Materials | Discovered new exit (range 12) 1019 | -10/Materials | Learned location of 2 exits from Mines 1030 | -10/Materials | Learned Storage security intel 1080 | -10/Materials | Learned Storage emergency access door positions 1119 | -10/Materials | Identified exit to Subcaves 1232 | -10/Materials | Entered Subcaves 1233 | -10/Subcaves | Approached by a straggling Scientist 1233 | -10/Subcaves | Identified exit to Recycling 1234 | -10/Subcaves | Ambushed by Subdwellers from Twisted Machinery 1234 | -10/Subcaves | Identified exit to Materials 1288 | -10/Subcaves | Lost 3 parts (1p1n1u) 1510 | -10/Subcaves | Shifting Twisted Machinery released Riot Gun 1724 | -10/Subcaves | Ambushed by Subdweller buried in earth 1729 | -10/Subcaves | Core integrity fell below 50% 1741 | -10/Subcaves | Core integrity fell below 20% 1767 | -10/Subcaves | Lost 3 parts (1n1u1w) 1819 | -10/Subcaves | Learned location of Zion (-7) 1822 | -10/Subcaves | Met a Zionite searching for "candidates" 1855 | -10/Subcaves | Visited Clippyterm 1859 | -10/Subcaves | Learned location of Deep Caves (-7) 1859 | -10/Subcaves | Learned Factory emergency access door positions 1909 | -10/Subcaves | Shifting Twisted Machinery released Humpback 1972 | -10/Subcaves | Found SUBCON Basin 2471 | -10/Subcaves | Entered Recycling 2582 | -7/Recycling | Destroyed by Y-54 Guardian with Gatling Laser Last Messages --------------- 02412_ Acquired Com. Wheel. 02414_ Acquired Scrap Shield. 02426_ Acquired 14 matter. 02430_ Acquired Broken Sub. Optics. 02433_ 5TQHIVWER9=PV TPHL&QUFH6GFI%#3MGFP LOCATION=RECYCLING GOAL=ESCAPE 02523_ Connecting with Terminal... >>Trojan(Skim) Trojan loaded successfully. Testing... Terminal linked with 0 systems. Please expand to 4 more systems! >>Trojan(Botnet) Trojan loaded successfully. Testing... Terminal linked with 0 systems. Awaiting botnet instructions. 02575_ System corrupted: Component data lost. 02580_ Y-54 Guardian springs to life. Map ----- +----------------------------------------------------+ | ?????????????????????????????????????????????????? | | ?????????????????????????????????????????????????? | | ?????????????????????????????????????????????????? | | ?????????????????????????????????????????????????? | | ?????????????????????????????????????????????????? | | ?????????????????????????????????????????????????? | | ?????????????????????????????????????????????????? | | ?????????????????????????????????????????????????? | | ?????????????????????????????????????????????????? | | ?????????????????????????????????????????????????? | | ????????????????????????? ???????????????????????? | | ????????????????????? ??? ???????????????????????? | | ??????????????????? ??? ???????????????????????? | | ???????????????????? ?? ???????????????????????? | | ???????????????????? ?? #??????????????????????? | | ????????????????????? ?? #??????????????????????? | | ????????????????????? r?? #??????????????????????? | | ?????????????????????#/## ###????????????????????? | | ?????????????????????# !!#????????????????????? | | ?????????????????????# !!#????????????????????? | | ??????????????##?????# !!?????????????????????? | | ????????????### ###### #??????????????????????? | | ????????????# Y #??????????????????????? | | ????????????# #??????????????????????? | | ????????????# #??????????????????????? | | ????????????# @#?##???????????????????? | | ??????##########+#######;### #???????????????????? | | ??????# """T""" #???# ## #????????????????????? | | ??????# #???# # #?????????????????????? | | ??????# """ """ #####""#??????????????????????? | | ??????# """ """ # "#??????????????????????? | | ??????# """ """ # ##??????????????????????? | | ??????# + #???????????????????????? | | ??????# """ """ # #???????????????????????? | | ??????# """ """ # #???????????????????????? | | ??????# """ """ ## ##???????????????????????? | | ??????# ## #????????????????????????? | | ??????# ## #????????????????????????? | | ??????# ## #????????????????????????? | | ???????############## ##############???????????? | | ????????????????????# # #???????????? | | ????????????????????# # #???????????? | | ????????????????????# # #???????????? | | ????????????????????# # #???????????? | | ????????????????????# # #???????????? | | ??????????########### # #???????????? | | ??????????# + + #???????????? | | ??????????# # # #??????????? | | ??????????# # # ##??????????? | | ??????????# + # #???????????? | +----------------------------------------------------+ Best States ------------- Heat Dissipation 25 Energy Generation 10 Energy Capacity 250 Matter Stores 300 Matter Capacity 300 Sight Range 21 Terrain Scan Density 10 Armor Coverage 800 Evasion (%) 40 Recoil Reduction 2 Offensive Hacking 10 Item Schematics ----------------- None Robot Schematics ------------------ None Fabricated ------------ Nothing Repaired ---------- Nothing Studied --------- None Alien Tech Used ----------------- None Achievements -------------- None Challenges ------------ None Game ------ Seed ExoskeletonBiometalPlating Manual? 0 Play Time 00:21:46 Cumulative 945.4 hours Start 2026.07.05 @ 03:36:53 End 2026.07.06 @ 00:00:13 Sessions 3 Manual Loads 0 Difficulty Rogue Special Mode None Game No. 265 Rogue 265 Adventurer 0 Explorer 0 Win Type - Total 39 Types 12/8/9/1/2/0/3/1/1/2 Lore% 96 Gallery% 90 Achievement% 86 Wizard Run 0 Options --------- Layout 1 ASCII 0 Keyboard 0 Movement Mouse Keybinds 0 Fullscreen 2 Font 32/SmallcapsGlow Map View 50x35 Zoom Use 0% Tactical HUD 1 Map Filters NONE Filters NONE Steam 1 RUN: 812d3610-649e-4505-b51c-326f45ff08b7